fUSD/lending_fUSD_20240119
["ID","MTS","AMOUNT","RATE_DAILY","PERIOD"]
[312222585,1705693867769,-1066.92,0.00025479,2]
[312222586,1705693867779,-2127.17,0.00025479,2]
[312222587,1705693867789,-500.0,0.00025479,2]
[312222588,1705693867798,-1404.62,0.00025479,2]
[312222589,1705693867809,-500.0,0.00025479,2]
[312222590,1705693867818,-557.49,0.00025479,2]
[312222591,1705693867828,-165.49,0.00025479,2]
[312222592,1705693867838,-1384.57,0.00025479,2]
[312222593,1705693867848,-600.54,0.00025479,2]
[312222594,1705693867858,-500.0,0.00025479,2]
[312222595,1705693867868,-500.0,0.00025479,2]
[312222596,1705693867878,-500.0,0.00025479,2]
[312222597,1705693867888,-500.0,0.00025479,2]
[312222598,1705693867899,-2093.33,0.00025479,2]
[312222599,1705693867909,-1299.85,0.00025479,2]
[312222600,1705693867919,-500.0,0.00025479,2]
[312222601,1705693867930,-500.0,0.00025479,2]
[312222602,1705693867940,-500.0,0.00025479,2]
[312222603,1705693867950,-636.92211625,0.00025479,2]
[312222604,1705693867960,-500.0,0.00025479,2]
[312222605,1705693867970,-1514.23,0.00025479,2]
[312222606,1705693867981,-168.47,0.00025479,2]
[312222607,1705693867992,-500.0,0.00025479,2]
[312222608,1705693868002,-500.0,0.00025479,2]
[312222609,1705693868013,-184.28,0.00025482,2]
[312222610,1705693868023,-894.0,0.00025521,2]
[312222611,1705693868034,-165.93960689,0.00025524,2]
[312222612,1705693868047,-184.28,0.00025629,2]
[312222613,1705693868057,-166.25,0.00025669,2]
[312222614,1705693868068,-167.0,0.00025703,2]
[312222615,1705693868078,-165.93960689,0.00025739,2]
[312222616,1705693868088,-500.0,0.00025753,2]
[312222617,1705693868099,-535.44,0.00025753,2]
[312222618,1705693868109,-500.0,0.00025753,2]
[312222619,1705693868120,-500.0,0.00025753,2]
[312222620,1705693868130,-500.0,0.00025753,2]
[312222621,1705693868140,-397.07525726,0.00025753,2]
[312222622,1705693868150,-500.0,0.00025753,2]
[312222623,1705693868160,-500.0,0.00025753,2]
[312222624,1705693868170,-500.0,0.00025753,2]
[312222625,1705693868181,-181.72,0.00025753,2]
[312222626,1705693868191,-500.0,0.00025753,2]
[312222627,1705693868201,-633.0,0.00025753,2]
[312222628,1705693868211,-500.0,0.00025753,2]
[312222629,1705693868222,-322.79,0.00025753,2]
[312222630,1705693868232,-500.0,0.00025753,2]
[312222631,1705693868242,-251.27,0.00025753,2]
[312222632,1705693868252,-550.77273112,0.00025753,2]
[312222633,1705693868262,-500.0,0.00025753,2]
[312222634,1705693868274,-500.0,0.00025753,2]
[312222635,1705693868285,-453.61,0.00025753,2]
[312222636,1705693868298,-591.89,0.00025753,2]
[312222637,1705693868308,-500.0,0.00025753,2]
[312222638,1705693868319,-500.0,0.00025753,2]
[312222639,1705693868331,-296.94,0.00025753,2]
[312222640,1705693868342,-500.0,0.00025753,2]
[312222641,1705693868351,-500.0,0.00025753,2]
[312222642,1705693868363,-500.0,0.00025753,2]
[312222643,1705693868373,-500.0,0.00025753,2]
[312222644,1705693868383,-500.0,0.00025753,2]
[312222645,1705693868393,-500.0,0.00025753,2]
[312222646,1705693868404,-555.24,0.00025753,2]
[312222647,1705693868414,-500.0,0.00025753,2]
[312222648,1705693868425,-500.0,0.00025753,2]
[312222649,1705693868435,-500.0,0.00025753,2]
[312222650,1705693868444,-500.0,0.00025753,2]
[312222651,1705693868454,-500.0,0.00025753,2]
[312222652,1705693868463,-500.0,0.00025753,2]
[312222653,1705693868473,-500.0,0.00025753,2]
[312222654,1705693868483,-500.0,0.00025753,2]
[312222655,1705693868492,-500.0,0.00025753,2]
[312222656,1705693868502,-500.0,0.00025753,2]
[312222657,1705693868511,-476.28,0.00025753,2]
[312222658,1705693868521,-500.0,0.00025753,2]
[312222659,1705693868530,-500.0,0.00025753,2]
[312222660,1705693868541,-500.0,0.00025753,2]
[312222661,1705693868551,-450.99,0.00025753,2]
[312222662,1705693868561,-500.0,0.00025753,2]
[312222663,1705693868570,-500.0,0.00025753,2]
[312222664,1705693868580,-237.87683808,0.00025753,2]
[312222665,1705693868589,-500.0,0.00025753,2]
[312222666,1705693868599,-615.48,0.00025753,2]
[312222667,1705693868610,-150.0,0.00025753,2]
[312222668,1705693868620,-500.0,0.00025753,2]
[312222669,1705693868630,-221.69,0.00025753,2]
[312222670,1705693868639,-2365.35,0.00025753,2]
[312222671,1705693868649,-500.0,0.00025753,2]
[312222672,1705693868659,-500.0,0.00025753,2]
[312222673,1705693868668,-500.0,0.00025753,2]
[312222674,1705693868678,-500.0,0.00025753,2]
[312222675,1705693868688,-282.23236364,0.00025753,2]
[312222676,1705693868698,-500.0,0.00025753,2]
[312222677,1705693868708,-500.0,0.00025753,2]
[312222678,1705693868718,-500.0,0.00025753,2]
[312222679,1705693868730,-506.13,0.00025753,2]
[312222680,1705693868741,-500.0,0.00025753,2]
[312222681,1705693868751,-500.0,0.00025753,2]
[312222682,1705693868767,-500.0,0.00025753,2]
[312222683,1705693868777,-500.0,0.00025753,2]
[312222684,1705693868790,-500.0,0.00025753,2]
[312222685,1705693868809,-500.0,0.00025753,2]
[312222686,1705693868823,-586.29,0.00025753,2]
[312222687,1705693868835,-500.0,0.00025753,2]
[312222688,1705693868845,-334.1,0.00025753,2]
[312222689,1705693868854,-500.0,0.00025753,2]
[312222690,1705693868876,-500.0,0.00025753,2]
[312222691,1705693868885,-464.09,0.00025753,2]
[312222692,1705693868914,-596.48,0.00025753,2]
[312222693,1705693868926,-500.0,0.00025753,2]
[312222694,1705693868945,-500.0,0.00025753,2]
[312222695,1705693868957,-357.96590699,0.00025753,2]
[312222696,1705693868970,-500.0,0.00025753,2]
[312222697,1705693868980,-500.0,0.00025753,2]
[312222698,1705693868990,-500.0,0.00025753,2]
[312222699,1705693869000,-500.0,0.00025753,2]
[312222700,1705693869010,-928.77,0.00025753,2]
[312222701,1705693869029,-500.0,0.00025753,2]
[312222702,1705693869056,-500.0,0.00025753,2]
[312222703,1705693869070,-500.0,0.00025753,2]
[312222704,1705693869096,-1861.12,0.00025753,2]
[312222705,1705693869106,-500.0,0.00025753,2]
[312222706,1705693869119,-500.0,0.00025753,2]
[312222707,1705693869131,-917.31,0.00025753,2]
[312222708,1705693869142,-1764.9,0.00025753,2]
[312222709,1705693869159,-500.0,0.00025753,2]
[312222710,1705693869170,-521.62,0.00025753,2]
[312222711,1705693869180,-1550.69,0.00025753,2]
[312222712,1705693869190,-1130.94,0.00025753,2]
[312222713,1705693869204,-500.0,0.00025753,2]
[312222714,1705693869215,-623.05,0.00025753,2]
[312222715,1705693869226,-771.68,0.00025753,2]
[312222716,1705693869237,-500.0,0.00025753,2]
[312222717,1705693869247,-500.0,0.00025753,2]
[312222718,1705693869258,-500.0,0.00025753,2]
[312222719,1705693869268,-503.49,0.00025753,2]
[312222720,1705693869278,-500.0,0.00025753,5]
[312222721,1705693869292,-500.0,0.00025753,2]
[312222722,1705693869302,-500.0,0.00025753,5]
[312222723,1705693869311,-500.0,0.00025753,2]
[312222724,1705693869323,-500.0,0.00025753,2]
[312222725,1705693869333,-500.0,0.00025753,2]
[312222726,1705693869344,-500.0,0.00025753,2]
[312222727,1705693869357,-1084.24,0.00025753,2]
[312222728,1705693869366,-1823.68,0.00025753,2]
[312222729,1705693869376,-359.84,0.00025753,2]
[312222730,1705693869387,-3335.07,0.00025753,2]
[312222731,1705693869396,-500.0,0.00025753,2]
[312222732,1705693869407,-153.79,0.00025753,2]
[312222733,1705693869421,-1731.4,0.00025753,2]
[312222734,1705693869430,-500.0,0.00025753,2]
[312222735,1705693869440,-2037.15,0.00025753,2]
[312222736,1705693869452,-2037.79,0.00025753,2]
[312222737,1705693869462,-500.0,0.00025753,2]
[312222738,1705693869472,-1807.75,0.00025753,2]
[312222739,1705693869485,-680.7,0.00025753,2]
[312222740,1705693869495,-1014.02,0.00025753,2]
[312222741,1705693869505,-500.0,0.00025753,2]
[312222742,1705693869517,-1949.96,0.00025753,2]
[312222743,1705693869527,-500.0,0.00025753,2]
[312222744,1705693869537,-500.0,0.00025753,2]
[312222745,1705693869549,-659.73,0.00025753,2]
[312222746,1705693869558,-500.0,0.00025753,2]
[312222747,1705693869570,-809.52,0.00025753,2]
[312222748,1705693869580,-3033.49,0.00025753,2]
[312222749,1705693869592,-500.0,0.00025753,2]
[312222750,1705693869602,-1580.72,0.00025753,2]
[312222751,1705693869614,-500.0,0.00025753,2]
[312222752,1705693869624,-2228.23,0.00025753,2]
[312222753,1705693869635,-500.0,0.00025753,2]
[312222754,1705693869645,-2403.96,0.00025753,2]
[312222755,1705693869655,-500.0,0.00025753,2]
[312222756,1705693869667,-715.15,0.00025753,2]
[312222757,1705693869677,-1528.36,0.00025753,2]
[312222758,1705693869686,-446.65,0.00025753,2]
[312222759,1705693869697,-707.27,0.00025753,2]
[312222760,1705693869707,-500.0,0.00025753,2]
[312222761,1705693869717,-839.61,0.00025753,2]
[312222762,1705693869727,-1399.25,0.00025753,2]
[312222763,1705693869737,-301.82,0.00025753,2]
[312222764,1705693869746,-500.0,0.00025753,2]
[312222765,1705693869757,-500.0,0.00025753,2]
[312222766,1705693869767,-530.2,0.00025753,2]
[312222767,1705693869776,-377.46,0.00025753,2]
[312222768,1705693869787,-500.0,0.00025753,2]
[312222769,1705693869797,-500.0,0.00025753,2]
[312222770,1705693869806,-500.0,0.00025753,2]
[312222771,1705693869817,-500.0,0.00025753,2]
[312222772,1705693869827,-702.87,0.00025753,2]
[312222773,1705693869836,-1669.84,0.00025753,2]
[312222774,1705693869847,-500.0,0.00025753,2]
[312222775,1705693869856,-500.0,0.00025753,2]
[312222776,1705693869866,-500.0,0.00025753,2]
[312222777,1705693869876,-633.49,0.00025753,2]
[312222778,1705693869885,-603.04,0.00025753,2]
[312222779,1705693869894,-500.0,0.00025753,2]
[312222780,1705693869903,-3055.09,0.00025753,2]
[312222781,1705693869913,-4886.42,0.00025753,2]
[312222782,1705693869923,-500.0,0.00025753,2]
[312222783,1705693869933,-500.0,0.00025753,2]
[312222784,1705693869943,-500.0,0.00025753,2]
[312222785,1705693869952,-1081.81,0.00025753,2]
[312222786,1705693869962,-500.0,0.00025753,2]
[312222787,1705693869971,-2414.03,0.00025753,2]
[312222788,1705693869981,-3012.69,0.00025753,2]
[312222789,1705693869991,-1049.52,0.00025753,2]
[312222790,1705693870002,-500.0,0.00025753,2]
[312222791,1705693870012,-1539.41,0.00025753,2]
[312222792,1705693870022,-1065.08,0.00025753,2]
[312222793,1705693870035,-500.0,0.00025753,2]
[312222794,1705693870046,-2998.92,0.00025753,2]
[312222795,1705693870057,-726.75,0.00025753,2]
[312222796,1705693870066,-2705.22,0.00025753,2]
[312222797,1705693870075,-1147.13,0.00025753,2]
[312222798,1705693870084,-500.0,0.00025753,2]
[312222799,1705693870095,-559.27000006,0.00025753,2]
[312222800,1705693870104,-1279.96,0.00025753,2]
[312222801,1705693870114,-562.54664444,0.00025753,2]
[312222802,1705693870124,-500.0,0.00025753,2]
[312222803,1705693870132,-549.26,0.00025753,2]
[312222804,1705693870143,-500.0,0.00025753,2]
[312222805,1705693870152,-500.0,0.00025753,2]
[312222806,1705693870161,-500.0,0.00025753,2]
[312222807,1705693870170,-500.0,0.00025753,2]
[312222808,1705693870179,-892.38,0.00025753,2]
[312222809,1705693870188,-452.99,0.00025753,2]
[312222810,1705693870198,-575.11,0.00025753,2]
[312222811,1705693870207,-500.0,0.00025753,2]
[312222812,1705693870218,-970.57,0.00025753,2]
[312222813,1705693870227,-1314.31,0.00025753,2]
[312222814,1705693870236,-500.0,0.00025753,2]
[312222815,1705693870247,-665.66,0.00025753,2]
[312222816,1705693870257,-500.0,0.00025753,2]
[312222817,1705693870266,-1312.06,0.00025753,2]
[312222818,1705693870277,-500.0,0.00025753,2]
[312222819,1705693870288,-1440.41,0.00025753,2]
[312222820,1705693870301,-500.0,0.00025753,2]
[312222821,1705693870313,-500.0,0.00025753,2]
[312222822,1705693870323,-801.63,0.00025753,2]
[312222823,1705693870333,-500.0,0.00025753,2]
[312222824,1705693870514,-500.0,0.00025753,2]
[312222825,1705693870525,-500.0,0.00025753,2]
[312222826,1705693870535,-1364.63,0.00025753,2]
[312222827,1705693870547,-500.0,0.00025753,2]
[312222828,1705693870557,-1869.93,0.00025753,2]
[312222829,1705693870566,-500.0,0.00025753,2]
[312222830,1705693870576,-500.0,0.00025753,2]
[312222831,1705693870586,-665.4,0.00025753,2]
[312222832,1705693870596,-500.0,0.00025753,2]
[312222833,1705693870606,-500.0,0.00025753,2]
[312222834,1705693870617,-500.0,0.00025753,2]
[312222835,1705693870626,-849.71,0.00025753,2]
[312222836,1705693870636,-500.0,0.00025753,2]
[312222837,1705693870646,-2620.86,0.00025753,2]
[312222838,1705693870656,-637.71,0.00025753,2]
[312222839,1705693870666,-604.42,0.00025753,2]
[312222840,1705693870676,-1448.26,0.00025753,2]
[312222841,1705693870685,-4987.45,0.00025753,2]
[312222842,1705693870695,-500.0,0.00025753,2]
[312222843,1705693870704,-531.02,0.00025753,2]
[312222844,1705693870714,-500.0,0.00025753,2]
[312222845,1705693870724,-500.0,0.00025753,2]
[312222846,1705693870735,-500.0,0.00025753,2]
[312222847,1705693870744,-803.95,0.00025753,2]
[312222848,1705693870754,-561.3200001,0.00025753,2]
[312222849,1705693870764,-1552.1,0.00025753,2]
[312222850,1705693870774,-500.0,0.00025753,2]
[312222851,1705693870783,-500.0,0.00025753,2]
[312222852,1705693870798,-896.77,0.00025753,2]
[312222853,1705693870808,-650.24,0.00025753,2]
[312222854,1705693870817,-500.0,0.00025753,2]
[312222855,1705693870828,-722.38,0.00025753,2]
[312222856,1705693870838,-568.74,0.00025753,2]
[312222857,1705693870847,-500.0,0.00025753,2]
[312222858,1705693870858,-500.0,0.00025753,2]
[312222859,1705693870867,-780.36,0.00025753,2]
[312222860,1705693870877,-500.0,0.00025753,2]
[312222861,1705693870887,-479.39,0.00025753,2]
[312222862,1705693870896,-500.0,0.00025753,2]
[312222863,1705693870905,-793.35,0.00025753,2]
[312222864,1705693870915,-1671.21,0.00025753,2]
[312222865,1705693870925,-500.0,0.00025753,2]
[312222866,1705693870934,-799.48,0.00025753,2]
[312222867,1705693870943,-934.16,0.00025753,2]
[312222868,1705693870953,-500.0,0.00025753,2]
[312222869,1705693870963,-1066.92,0.00025753,2]
[312222870,1705693870973,-2127.17,0.00025753,2]
[312222871,1705693870983,-500.0,0.00025753,2]
[312222872,1705693870992,-1404.62,0.00025753,2]
[312222873,1705693871001,-500.0,0.00025753,2]
[312222874,1705693871011,-557.49,0.00025753,2]
[312222875,1705693871020,-1384.57,0.00025753,2]
[312222876,1705693871030,-353.54,0.00025753,2]
[312222877,1705693871041,-500.0,0.00025753,2]
[312222878,1705693871051,-500.0,0.00025753,2]
[312222879,1705693871061,-2093.33,0.00025753,2]
[312222880,1705693871070,-1299.85,0.00025753,2]
[312222881,1705693871080,-164.46,0.00025753,2]
[312222882,1705693871089,-500.0,0.00025753,2]
[312222883,1705693871098,-500.0,0.00025753,2]
[312222884,1705693871107,-500.0,0.00025753,2]
[312222885,1705693871117,-1514.23,0.00025753,2]
[312222886,1705693871127,-500.0,0.00025753,2]
[312222887,1705693871137,-500.0,0.00025753,2]
[312222888,1705693871146,-158.1,0.00025766,2]
[312222889,1705693871156,-184.28,0.00025776,2]
[312222890,1705693871166,-156.8,0.00025824,2]
[312222891,1705693871175,-184.28,0.00025923,2]
[312222892,1705693871185,-500.0,0.0002595,2]
[312222893,1705693871195,-165.93960689,0.00025953,2]
[312222894,1705693871204,-157.98,0.00025982,2]
[312222895,1705693871213,-500.0,0.00026,2]
[312222896,1705693871223,-158.75304787,0.00026027,2]
[312222897,1705693871233,-500.0,0.00026027,2]
[312222898,1705693871243,-244.95161327,0.00026027,2]
[312222899,1705693871252,-399.76210796,0.00026027,2]
[312222900,1705693871261,-500.0,0.00026027,2]
[312222901,1705693871271,-310.81,0.00026027,2]
[312222902,1705693871282,-500.0,0.00026027,2]
[312222903,1705693871293,-500.0,0.00026027,2]
[312222904,1705693871304,-500.0,0.00026027,2]
[312222905,1705693871314,-500.0,0.00026027,2]
[312222906,1705693871324,-368.31,0.00026027,2]
[312222907,1705693871334,-500.0,0.00026027,2]
[312222908,1705693871346,-271.4018215,0.00026027,2]
[312222909,1705693871356,-500.0,0.00026027,2]
[312222910,1705693871365,-490.88,0.00026027,2]
[312222911,1705693871375,-500.0,0.00026027,2]
[312222912,1705693871385,-500.0,0.00026027,2]
[312222913,1705693871395,-537.67,0.00026027,2]
[312222914,1705693871405,-500.0,0.00026027,2]
[312222915,1705693871415,-500.0,0.00026027,2]
[312222916,1705693871426,-500.0,0.00026027,2]
[312222917,1705693871436,-500.0,0.00026027,2]
[312222918,1705693871445,-384.38,0.00026027,2]
[312222919,1705693871455,-500.0,0.00026027,2]
[312222920,1705693871465,-500.0,0.00026027,2]
[312222921,1705693871474,-500.0,0.00026027,2]
[312222922,1705693871483,-500.0,0.00026027,2]
[312222923,1705693871493,-500.0,0.00026027,2]
[312222924,1705693871503,-195.41,0.00026027,2]
[312222925,1705693871512,-150.0,0.00026027,2]
[312222926,1705693871522,-500.0,0.00026027,2]
[312222927,1705693871532,-2365.35,0.00026027,2]
[312222928,1705693871541,-429.42,0.00026027,2]
[312222929,1705693871551,-194.99,0.00026027,2]
[312222930,1705693871560,-500.0,0.00026027,2]
[312222931,1705693871569,-500.0,0.00026027,2]
[312222932,1705693871579,-500.0,0.00026027,2]
[312222933,1705693871588,-500.0,0.00026027,2]
[312222934,1705693871597,-500.0,0.00026027,2]
[312222935,1705693871607,-506.13,0.00026027,2]
[312222936,1705693871617,-500.0,0.00026027,2]
[312222937,1705693871626,-500.0,0.00026027,2]
[312222938,1705693871636,-269.19,0.00026027,2]
[312222939,1705693871645,-407.93,0.00026027,2]
[312222940,1705693871655,-500.0,0.00026027,2]
[312222941,1705693871664,-500.0,0.00026027,2]
[312222942,1705693871674,-282.43,0.00026027,2]
[312222943,1705693871683,-500.0,0.00026027,2]
[312222944,1705693871692,-543.39188628,0.00026027,2]
[312222945,1705693871701,-500.0,0.00026027,2]
[312222946,1705693871711,-500.0,0.00026027,2]
[312222947,1705693871720,-571.07,0.00026027,2]
[312222948,1705693871730,-500.0,0.00026027,2]
[312222949,1705693871740,-500.0,0.00026027,2]
[312222950,1705693871751,-526.12,0.00026027,2]
[312222951,1705693871761,-928.77,0.00026027,2]
[312222952,1705693871771,-500.0,0.00026027,2]
[312222953,1705693871780,-500.0,0.00026027,2]
[312222954,1705693871790,-500.0,0.00026027,2]
[312222955,1705693871799,-1861.12,0.00026027,2]
[312222956,1705693871809,-475.52,0.00026027,2]
[312222957,1705693871821,-500.0,0.00026027,2]
[312222958,1705693871830,-917.31,0.00026027,2]
[312222959,1705693871840,-1764.9,0.00026027,2]
[312222960,1705693871849,-500.0,0.00026027,2]
[312222961,1705693871859,-521.62,0.00026027,2]
[312222962,1705693871869,-1550.69,0.00026027,2]
[312222963,1705693871879,-1130.94,0.00026027,2]
[312222964,1705693871888,-500.0,0.00026027,2]
[312222965,1705693871898,-623.05,0.00026027,2]
[312222966,1705693871907,-771.68,0.00026027,2]
[312222967,1705693871916,-500.0,0.00026027,2]
[312222968,1705693871925,-617.11,0.00026027,2]
[312222969,1705693871935,-500.0,0.00026027,2]
[312222970,1705693871943,-503.49,0.00026027,2]
[312222971,1705693871953,-500.0,0.00026027,5]
[312222972,1705693871962,-306.25,0.00026027,2]
[312222973,1705693871972,-500.0,0.00026027,5]
[312222974,1705693871981,-156.36,0.00026027,2]
[312222975,1705693871990,-500.0,0.00026027,2]
[312222976,1705693872000,-1084.24,0.00026027,2]
[312222977,1705693872009,-1823.68,0.00026027,2]
[312222978,1705693872018,-3335.07,0.00026027,2]
[312222979,1705693872028,-500.0,0.00026027,2]
[312222980,1705693872038,-1731.4,0.00026027,2]
[312222981,1705693872048,-500.0,0.00026027,2]
[312222982,1705693872057,-2037.15,0.00026027,2]
[312222983,1705693872067,-2037.79,0.00026027,2]
[312222984,1705693872077,-500.0,0.00026027,2]
[312222985,1705693872086,-1807.75,0.00026027,2]
[312222986,1705693872095,-680.7,0.00026027,2]
[312222987,1705693872105,-1014.02,0.00026027,2]
[312222988,1705693872115,-487.19,0.00026027,2]
[312222989,1705693872124,-500.0,0.00026027,2]
[312222990,1705693872133,-1949.96,0.00026027,2]
[312222991,1705693872142,-500.0,0.00026027,2]
[312222992,1705693872151,-659.73,0.00026027,2]
[312222993,1705693872160,-500.0,0.00026027,2]
[312222994,1705693872169,-809.52,0.00026027,2]
[312222995,1705693872178,-3033.49,0.00026027,2]
[312222996,1705693872187,-191.42622219,0.00026027,2]
[312222997,1705693872196,-1580.72,0.00026027,2]
[312222998,1705693872206,-500.0,0.00026027,2]
[312222999,1705693872216,-2228.23,0.00026027,2]
[312223000,1705693872226,-500.0,0.00026027,2]
[312223001,1705693872236,-2403.96,0.00026027,2]
[312223002,1705693872247,-500.0,0.00026027,2]
[312223003,1705693872257,-715.15,0.00026027,2]
[312223004,1705693872266,-1528.36,0.00026027,2]
[312223005,1705693872276,-707.27,0.00026027,2]
[312223006,1705693872285,-500.0,0.00026027,2]
[312223007,1705693872297,-839.61,0.00026027,2]
[312223008,1705693872308,-1399.25,0.00026027,2]
[312223009,1705693872318,-500.0,0.00026027,2]
[312223010,1705693872328,-500.0,0.00026027,2]
[312223011,1705693872338,-530.2,0.00026027,2]
[312223012,1705693872347,-500.0,0.00026027,2]
[312223013,1705693872357,-500.0,0.00026027,2]
[312223014,1705693872367,-500.0,0.00026027,2]
[312223015,1705693872377,-500.0,0.00026027,2]
[312223016,1705693872386,-702.87,0.00026027,2]
[312223017,1705693872396,-1669.84,0.00026027,2]
[312223018,1705693872406,-593.36,0.00026027,2]
[312223019,1705693872416,-500.0,0.00026027,2]
[312223020,1705693872426,-631.17,0.00026027,2]
[312223021,1705693872436,-633.49,0.00026027,2]
[312223022,1705693872446,-500.0,0.00026027,2]
[312223023,1705693872455,-3055.09,0.00026027,2]
[312223024,1705693872465,-4886.42,0.00026027,2]
[312223025,1705693872475,-500.0,0.00026027,2]
[312223026,1705693872485,-500.0,0.00026027,2]
[312223027,1705693872494,-1081.81,0.00026027,2]
[312223028,1705693872504,-500.0,0.00026027,2]
[312223029,1705693872514,-2414.03,0.00026027,2]
[312223030,1705693872523,-3012.69,0.00026027,2]
[312223031,1705693872533,-1049.52,0.00026027,2]
[312223032,1705693872543,-500.0,0.00026027,2]
[312223033,1705693872553,-1539.41,0.00026027,2]
[312223034,1705693872562,-1065.08,0.00026027,2]
[312223035,1705693872573,-500.0,0.00026027,2]
[312223036,1705693872583,-2998.92,0.00026027,2]
[312223037,1705693872592,-726.75,0.00026027,2]
[312223038,1705693872602,-2705.22,0.00026027,2]
[312223039,1705693872612,-1147.13,0.00026027,2]
[312223040,1705693872622,-500.0,0.00026027,2]
[312223041,1705693872632,-1279.96,0.00026027,2]
[312223042,1705693872641,-500.0,0.00026027,2]
[312223043,1705693872651,-223.38022099,0.00026027,2]
[312223044,1705693872661,-549.26,0.00026027,2]
[312223045,1705693872670,-500.0,0.00026027,2]
[312223046,1705693872680,-500.0,0.00026027,2]
[312223047,1705693872689,-500.0,0.00026027,2]
[312223048,1705693872699,-892.38,0.00026027,2]
[312223049,1705693872709,-575.11,0.00026027,2]
[312223050,1705693872718,-260.75,0.00026027,2]
[312223051,1705693872728,-970.57,0.00026027,2]
[312223052,1705693872737,-1314.31,0.00026027,2]
[312223053,1705693872746,-500.0,0.00026027,2]
[312223054,1705693872755,-665.66,0.00026027,2]
[312223055,1705693872765,-500.0,0.00026027,2]
[312223056,1705693872774,-1312.06,0.00026027,2]
[312223057,1705693872783,-500.0,0.00026027,2]
[312223058,1705693872793,-1440.41,0.00026027,2]
[312223059,1705693872803,-500.0,0.00026027,2]
[312223060,1705693872813,-500.0,0.00026027,2]
[312223061,1705693872823,-801.63,0.00026027,2]
[312223062,1705693872833,-500.0,0.00026027,2]
[312223063,1705693872842,-500.0,0.00026027,2]
[312223064,1705693872852,-500.0,0.00026027,2]
[312223065,1705693872862,-1364.63,0.00026027,2]
[312223066,1705693872872,-500.0,0.00026027,2]
[312223067,1705693872881,-1869.93,0.00026027,2]
[312223068,1705693872890,-500.0,0.00026027,2]
[312223069,1705693872900,-500.0,0.00026027,2]
[312223070,1705693872910,-665.4,0.00026027,2]
[312223071,1705693872919,-500.0,0.00026027,2]
[312223072,1705693872929,-500.0,0.00026027,2]
[312223073,1705693872938,-334.0,0.00026027,2]
[312223074,1705693872948,-500.0,0.00026027,2]
[312223075,1705693872958,-849.71,0.00026027,2]
[312223076,1705693872967,-2620.86,0.00026027,2]
[312223077,1705693872976,-637.71,0.00026027,2]
[312223078,1705693872986,-1448.26,0.00026027,2]
[312223079,1705693872995,-4987.45,0.00026027,2]
[312223080,1705693873004,-500.0,0.00026027,2]
[312223081,1705693873014,-500.0,0.00026027,2]
[312223082,1705693873023,-531.02,0.00026027,2]
[312223083,1705693873032,-500.0,0.00026027,2]
[312223084,1705693873042,-500.0,0.00026027,2]